[Event "*** Titled Tuesday Blitz"]
[Site "Chess.com"]
[Date "2020.04.28"]
[Round "9"]
[White "TigrVShlyape"]
[Black "Joshukid"]
[Result "1-0"]
[WhiteElo "2824"]
[BlackElo "2552"]
[TimeControl "180+1"]
[EndTime "11:45:44 PDT"]
[Termination "TigrVShlyape won by resignation"]

1. d4 {[%clk 0:03:00.9]} 1... Nf6 {[%clk 0:02:59.7]} 2. Nf3 {[%clk 0:02:50.6]}
2... d5 {[%clk 0:02:58.3]} 3. Bf4 {[%clk 0:02:50]} 3... e6 {[%clk 0:02:57.1]} 4.
e3 {[%clk 0:02:49.6]} 4... c5 {[%clk 0:02:54.5]} 5. Nbd2 {[%clk 0:02:48.9]} 5...
Nc6 {[%clk 0:02:54]} 6. c3 {[%clk 0:02:48.6]} 6... c4 {[%clk 0:02:48.1]} 7. b3
{[%clk 0:02:45.1]} 7... cxb3 {[%clk 0:02:45.6]} 8. axb3 {[%clk 0:02:44.7]} 8...
Bd6 {[%clk 0:02:45.9]} 9. Bd3 {[%clk 0:02:42.8]} 9... Qc7 {[%clk 0:02:44.6]} 10.
Bxd6 {[%clk 0:02:34.3]} 10... Qxd6 {[%clk 0:02:44.9]} 11. b4 {[%clk 0:02:33.5]}
11... O-O {[%clk 0:02:43.3]} 12. b5 {[%clk 0:02:30.1]} 12... Ne7 {[%clk
0:02:41.9]} 13. O-O {[%clk 0:02:29.4]} 13... Ng6 {[%clk 0:02:38.9]} 14. c4
{[%clk 0:02:28.4]} 14... dxc4 {[%clk 0:02:37.2]} 15. Nxc4 {[%clk 0:02:27.7]}
15... Qe7 {[%clk 0:02:33.3]} 16. Nb6 {[%clk 0:02:24.7]} 16... Rb8 {[%clk
0:02:31.2]} 17. Rxa7 {[%clk 0:02:23.8]} 17... Bd7 {[%clk 0:02:28.3]} 18. Qb1
{[%clk 0:02:18.8]} 18... Rfd8 {[%clk 0:02:24.9]} 19. Rc1 {[%clk 0:02:15.2]}
19... Be8 {[%clk 0:02:23.6]} 20. h3 {[%clk 0:02:14.1]} 20... Qd6 {[%clk
0:02:17.3]} 21. Nc4 {[%clk 0:02:13.6]} 21... Qd5 {[%clk 0:02:15.5]} 22. Nce5
{[%clk 0:02:00.1]} 22... Rdc8 {[%clk 0:02:07.3]} 23. Rxc8 {[%clk 0:01:56.2]}
23... Rxc8 {[%clk 0:02:07.4]} 24. e4 {[%clk 0:01:54]} 24... Qd6 {[%clk 0:02:06]}
25. Rxb7 {[%clk 0:01:51.6]} 25... Nxe5 {[%clk 0:02:05.9]} 26. dxe5 {[%clk
0:01:50.1]} 26... Qa3 {[%clk 0:02:06.4]} 27. exf6 {[%clk 0:01:00.1]} 27... Rc1+
{[%clk 0:02:03.2]} 28. Qxc1 {[%clk 0:00:54.4]} 28... Qxc1+ {[%clk 0:02:04.1]}
29. Bf1 {[%clk 0:00:54.1]} 29... gxf6 {[%clk 0:02:01.4]} 30. Rb8 {[%clk
0:00:53.6]} 30... Kf8 {[%clk 0:02:01.2]} 31. b6 {[%clk 0:00:53.2]} 31... Ke7
{[%clk 0:02:01.5]} 32. Nd4 {[%clk 0:00:51.7]} 32... Bd7 {[%clk 0:01:51.8]} 33.
Rb7 {[%clk 0:00:48.5]} 33... Kd6 {[%clk 0:01:46]} 34. Ra7 {[%clk 0:00:42.2]}
34... Qc5 {[%clk 0:01:39.7]} 35. Ra8 {[%clk 0:00:37.4]} 35... Qb4 {[%clk
0:01:29.6]} 36. Nb5+ {[%clk 0:00:26.1]} 36... Kc6 {[%clk 0:01:21.5]} 37. Ra7
{[%clk 0:00:25.7]} 37... Qe7 {[%clk 0:00:38.6]} 38. b7 {[%clk 0:00:22.5]} 38...
Qe8 {[%clk 0:00:32.3]} 39. Ra8 {[%clk 0:00:22.1]} 1-0

[Event "*** Titled Tuesday Blitz"]
[Site "Chess.com"]
[Date "2020.04.28"]
[Round "9"]
[White "shav3184"]
[Black "ehrenfeld"]
[Result "0-1"]
[WhiteElo "2278"]
[BlackElo "2478"]
[TimeControl "180+1"]
[EndTime "11:45:44 PDT"]
[Termination "ehrenfeld won by checkmate"]

1. e4 {[%clk 0:03:00.9]} 1... e5 {[%clk 0:02:59.5]} 2. Nf3 {[%clk 0:03:00.7]}
2... Nc6 {[%clk 0:02:59.6]} 3. Bc4 {[%clk 0:03:00.8]} 3... Nf6 {[%clk
0:02:58.5]} 4. d3 {[%clk 0:03:00.4]} 4... h6 {[%clk 0:02:57.3]} 5. O-O {[%clk
0:02:59.9]} 5... g5 {[%clk 0:02:55.2]} 6. d4 {[%clk 0:02:52.7]} 6... Qe7 {[%clk
0:02:46.3]} 7. dxe5 {[%clk 0:02:49.8]} 7... Nxe5 {[%clk 0:02:45.7]} 8. Nxe5
{[%clk 0:02:48.9]} 8... Qxe5 {[%clk 0:02:45.7]} 9. Nc3 {[%clk 0:02:48]} 9... d6
{[%clk 0:02:45.2]} 10. Bb3 {[%clk 0:02:25.4]} 10... Be6 {[%clk 0:02:33.6]} 11.
Bxe6 {[%clk 0:02:03.8]} 11... fxe6 {[%clk 0:02:32.1]} 12. Be3 {[%clk 0:02:00]}
12... Bg7 {[%clk 0:02:26.2]} 13. Bd4 {[%clk 0:01:51.2]} 13... Qa5 {[%clk
0:02:22.9]} 14. f4 {[%clk 0:01:35]} 14... gxf4 {[%clk 0:02:19.2]} 15. Rxf4
{[%clk 0:00:58.1]} 15... e5 {[%clk 0:02:07.2]} 16. Rxf6 {[%clk 0:00:57.8]} 16...
Bxf6 {[%clk 0:02:06.3]} 17. Nd5 {[%clk 0:00:36.7]} 17... O-O-O {[%clk
0:01:10.6]} 18. b4 {[%clk 0:00:31.5]} 18... Qa3 {[%clk 0:01:04.4]} 19. Bf2
{[%clk 0:00:24.6]} 19... Rdf8 {[%clk 0:00:54.8]} 20. Qg4+ {[%clk 0:00:19.3]}
20... Kb8 {[%clk 0:00:54.2]} 21. Qd7 {[%clk 0:00:19.2]} 21... Bd8 {[%clk
0:00:52.9]} 22. Rd1 {[%clk 0:00:15.2]} 22... Rhg8 {[%clk 0:00:43.3]} 23. Bh4
{[%clk 0:00:13.9]} 23... Bxh4 {[%clk 0:00:34.6]} 24. Qxc7+ {[%clk 0:00:14]}
24... Ka8 {[%clk 0:00:34.6]} 25. Qxd6 {[%clk 0:00:14.2]} 25... Bd8 {[%clk
0:00:34.5]} 26. Qxe5 {[%clk 0:00:09]} 26... Rxg2+ {[%clk 0:00:32.8]} 27. Kxg2
{[%clk 0:00:08.2]} 27... Qf3+ {[%clk 0:00:32.7]} 28. Kg1 {[%clk 0:00:07.7]}
28... Qxd1+ {[%clk 0:00:32.6]} 29. Kg2 {[%clk 0:00:06.8]} 29... Qf3+ {[%clk
0:00:32.6]} 30. Kg1 {[%clk 0:00:07.1]} 30... Qf1# {[%clk 0:00:32.5]} 0-1

[Event "*** Titled Tuesday Blitz"]
[Site "Chess.com"]
[Date "2020.04.28"]
[Round "9"]
[White "Koalaskakistis"]
[Black "Andrii_Prydun"]
[Result "0-1"]
[WhiteElo "2521"]
[BlackElo "2377"]
[TimeControl "180+1"]
[EndTime "11:45:45 PDT"]
[Termination "Andrii_Prydun won by resignation"]

1. e4 {[%clk 0:03:00.9]} 1... d5 {[%clk 0:02:58.8]} 2. exd5 {[%clk 0:03:00]}
2... Qxd5 {[%clk 0:02:59.7]} 3. Nc3 {[%clk 0:02:58.7]} 3... Qd6 {[%clk
0:03:00.4]} 4. d4 {[%clk 0:02:56.7]} 4... c6 {[%clk 0:03:01]} 5. Nf3 {[%clk
0:02:56.4]} 5... Bg4 {[%clk 0:03:01.2]} 6. h3 {[%clk 0:02:55]} 6... Bxf3 {[%clk
0:03:01.1]} 7. Qxf3 {[%clk 0:02:54.4]} 7... Qxd4 {[%clk 0:03:01.7]} 8. Be3
{[%clk 0:02:44.9]} 8... Qd8 {[%clk 0:03:00.7]} 9. Rd1 {[%clk 0:02:43.7]} 9...
Nd7 {[%clk 0:03:00.3]} 10. Bc4 {[%clk 0:02:41.9]} 10... e6 {[%clk 0:03:00.5]}
11. Ne4 {[%clk 0:02:25.8]} 11... Ngf6 {[%clk 0:02:51.8]} 12. Ng5 {[%clk
0:02:25.6]} 12... h6 {[%clk 0:02:34.2]} 13. Ne4 {[%clk 0:02:19.8]} 13... Be7
{[%clk 0:02:27.1]} 14. O-O {[%clk 0:02:17.9]} 14... O-O {[%clk 0:02:22.9]} 15.
Rd2 {[%clk 0:02:08.7]} 15... Qa5 {[%clk 0:02:12]} 16. Rfd1 {[%clk 0:01:56]}
16... Ne5 {[%clk 0:02:12.1]} 17. Nxf6+ {[%clk 0:01:51.2]} 17... Bxf6 {[%clk
0:02:13]} 18. Qe4 {[%clk 0:01:46.8]} 18... Qb4 {[%clk 0:01:24.5]} 19. Bd5 {[%clk
0:01:38.2]} 19... Qxb2 {[%clk 0:01:19.8]} 20. Bb3 {[%clk 0:01:37.7]} 20... Qa3
{[%clk 0:01:04.3]} 21. f4 {[%clk 0:01:13.3]} 21... Ng6 {[%clk 0:00:52.5]} 22.
Rd7 {[%clk 0:01:12.5]} 22... Ne7 {[%clk 0:00:41.9]} 23. Rxb7 {[%clk 0:00:59.7]}
23... Nd5 {[%clk 0:00:41.8]} 24. Bf2 {[%clk 0:00:54.2]} 24... Nc3 {[%clk
0:00:40.7]} 25. Qf3 {[%clk 0:00:48.9]} 25... Nxd1 {[%clk 0:00:40.4]} 26. Qxd1
{[%clk 0:00:49.8]} 26... Rfd8 {[%clk 0:00:39]} 27. Qg4 {[%clk 0:00:49.2]} 27...
Qc1+ {[%clk 0:00:38.6]} 28. Kh2 {[%clk 0:00:48.8]} 28... Re8 {[%clk 0:00:26.6]}
29. h4 {[%clk 0:00:38]} 29... Qf1 {[%clk 0:00:26.4]} 30. Kg3 {[%clk 0:00:25.2]}
30... Rad8 {[%clk 0:00:25.9]} 31. h5 {[%clk 0:00:20]} 31... Rd2 {[%clk
0:00:25.5]} 32. Qf3 {[%clk 0:00:19.8]} 32... Rxf2 {[%clk 0:00:23.5]} 33. Qxf2
{[%clk 0:00:16.8]} 33... Bh4+ {[%clk 0:00:23.5]} 0-1

[Event "*** Titled Tuesday Blitz"]
[Site "Chess.com"]
[Date "2020.04.28"]
[Round "9"]
[White "Alexandercs432"]
[Black "zivicd"]
[Result "0-1"]
[WhiteElo "2109"]
[BlackElo "2221"]
[TimeControl "180+1"]
[EndTime "11:45:45 PDT"]
[Termination "zivicd won by checkmate"]

1. e4 {[%clk 0:03:00.9]} 1... c5 {[%clk 0:02:37.9]} 2. Nf3 {[%clk 0:03:00.3]}
2... e6 {[%clk 0:02:36.1]} 3. d4 {[%clk 0:02:58.9]} 3... cxd4 {[%clk 0:02:36.4]}
4. Nxd4 {[%clk 0:02:59.8]} 4... a6 {[%clk 0:02:36.7]} 5. Bd3 {[%clk 0:02:59]}
5... Nf6 {[%clk 0:02:36.4]} 6. O-O {[%clk 0:02:57]} 6... Qc7 {[%clk 0:02:34.8]}
7. c4 {[%clk 0:02:52.8]} 7... b6 {[%clk 0:02:30.9]} 8. Nc3 {[%clk 0:02:53.3]}
8... Bb7 {[%clk 0:02:31.1]} 9. Qe2 {[%clk 0:02:53.6]} 9... d6 {[%clk 0:02:30.4]}
10. Be3 {[%clk 0:02:48]} 10... Nbd7 {[%clk 0:02:28.2]} 11. Rac1 {[%clk
0:02:47.9]} 11... Be7 {[%clk 0:02:27]} 12. Rfd1 {[%clk 0:02:48.3]} 12... O-O
{[%clk 0:02:25]} 13. b3 {[%clk 0:02:48.5]} 13... Rac8 {[%clk 0:02:24.6]} 14. f3
{[%clk 0:02:48.8]} 14... Rfe8 {[%clk 0:02:23.3]} 15. Kh1 {[%clk 0:02:49.3]}
15... Qb8 {[%clk 0:02:21.2]} 16. Qf2 {[%clk 0:02:49.3]} 16... d5 {[%clk
0:02:09.2]} 17. exd5 {[%clk 0:02:46.6]} 17... exd5 {[%clk 0:02:08.2]} 18. Nf5
{[%clk 0:02:42.8]} 18... Ba3 {[%clk 0:01:59.9]} 19. Rb1 {[%clk 0:02:38.4]} 19...
Ne5 {[%clk 0:01:34.5]} 20. Bf1 {[%clk 0:02:29.7]} 20... dxc4 {[%clk 0:01:18.6]}
21. Bxb6 {[%clk 0:02:25.7]} 21... Nd3 {[%clk 0:00:56.9]} 22. Bxd3 {[%clk
0:02:19.1]} 22... cxd3 {[%clk 0:00:56.4]} 23. Rxd3 {[%clk 0:02:06]} 23... Qe5
{[%clk 0:00:53.8]} 24. Na4 {[%clk 0:01:49.8]} 24... Qxf5 {[%clk 0:00:51]} 25.
Rbd1 {[%clk 0:01:44]} 25... h5 {[%clk 0:00:39.2]} 26. Be3 {[%clk 0:01:40.3]}
26... Bc6 {[%clk 0:00:29.8]} 27. Nb6 {[%clk 0:01:36.8]} 27... Bb5 {[%clk
0:00:21.7]} 28. R3d2 {[%clk 0:01:28.9]} 28... Rc6 {[%clk 0:00:17.8]} 29. Nd5
{[%clk 0:01:17]} 29... Rce6 {[%clk 0:00:13.1]} 30. Nxf6+ {[%clk 0:01:14.5]}
30... Qxf6 {[%clk 0:00:12.4]} 31. Bd4 {[%clk 0:01:08]} 31... Qg5 {[%clk
0:00:10.7]} 32. h3 {[%clk 0:01:05.2]} 32... Bb4 {[%clk 0:00:10.6]} 33. Rc2
{[%clk 0:00:59.7]} 33... Re1+ {[%clk 0:00:09.6]} 34. Rxe1 {[%clk 0:00:58.1]}
34... Rxe1+ {[%clk 0:00:09.4]} 35. Kh2 {[%clk 0:00:58]} 35... Bd6+ {[%clk
0:00:05.1]} 36. g3 {[%clk 0:00:56.1]} 36... Rd1 {[%clk 0:00:02.7]} 37. h4 {[%clk
0:00:52.6]} 37... Qxh4+ {[%clk 0:00:01.4]} 38. Kg2 {[%clk 0:00:49.5]} 38... Qh1#
{[%clk 0:00:01.4]} 0-1

[Event "*** Titled Tuesday Blitz"]
[Site "Chess.com"]
[Date "2020.04.28"]
[Round "9"]
[White "Mazanchenko_Dmitry"]
[Black "Chessterra87"]
[Result "0-1"]
[WhiteElo "2140"]
[BlackElo "2316"]
[TimeControl "180+1"]
[EndTime "11:45:46 PDT"]
[Termination "Chessterra87 won on time"]

1. e4 {[%clk 0:03:00.9]} 1... c5 {[%clk 0:02:58.6]} 2. Ne2 {[%clk 0:02:59.8]}
2... e6 {[%clk 0:02:58.6]} 3. Nbc3 {[%clk 0:02:59]} 3... a6 {[%clk 0:02:58.5]}
4. a4 {[%clk 0:02:58.6]} 4... d5 {[%clk 0:02:57.3]} 5. d4 {[%clk 0:02:58.4]}
5... cxd4 {[%clk 0:02:54.2]} 6. Nxd4 {[%clk 0:02:55.4]} 6... Nc6 {[%clk
0:02:54.5]} 7. exd5 {[%clk 0:02:54]} 7... exd5 {[%clk 0:02:54.5]} 8. Be3 {[%clk
0:02:53.4]} 8... Nf6 {[%clk 0:02:52.8]} 9. Be2 {[%clk 0:02:51.2]} 9... Be7
{[%clk 0:02:52.9]} 10. O-O {[%clk 0:02:50.6]} 10... O-O {[%clk 0:02:53]} 11. Bf3
{[%clk 0:02:50.5]} 11... Ne5 {[%clk 0:02:50.6]} 12. Bf4 {[%clk 0:02:42]} 12...
Nxf3+ {[%clk 0:02:49.3]} 13. Qxf3 {[%clk 0:02:42.9]} 13... Bg4 {[%clk
0:02:35.8]} 14. Qg3 {[%clk 0:02:19.2]} 14... Qb6 {[%clk 0:02:27.5]} 15. Nb3
{[%clk 0:02:14.6]} 15... Rfe8 {[%clk 0:02:10.9]} 16. Nxd5 {[%clk 0:01:40.4]}
16... Nxd5 {[%clk 0:02:05.2]} 17. Qxg4 {[%clk 0:01:39.9]} 17... Bf6 {[%clk
0:01:53.3]} 18. Qf3 {[%clk 0:00:48.5]} 18... Nxf4 {[%clk 0:01:44.8]} 19. Qxf4
{[%clk 0:00:49.4]} 19... Re2 {[%clk 0:01:44.5]} 20. Qf5 {[%clk 0:00:27.3]} 20...
g6 {[%clk 0:01:39.8]} 21. Qd3 {[%clk 0:00:26.4]} 21... Rae8 {[%clk 0:01:37.1]}
22. a5 {[%clk 0:00:24.8]} 22... Qc7 {[%clk 0:01:31.1]} 23. Nd4 {[%clk
0:00:16.8]} 23... Bxd4 {[%clk 0:01:29.6]} 24. Qxd4 {[%clk 0:00:17.7]} 24... Rxc2
{[%clk 0:01:29]} 25. b4 {[%clk 0:00:15.9]} 25... Ree2 {[%clk 0:01:24]} 26. Rad1
{[%clk 0:00:15.8]} 26... Rb2 {[%clk 0:01:16.1]} 27. g3 {[%clk 0:00:11.3]} 27...
Qe5 {[%clk 0:01:11.8]} 28. Qh4 {[%clk 0:00:07.8]} 28... Kg7 {[%clk 0:01:06.5]}
29. Rd7 {[%clk 0:00:06.6]} 29... Qe6 {[%clk 0:00:50.1]} 30. Rc1 {[%clk 0:00:05]}
30... Re1+ {[%clk 0:00:49.5]} 31. Rxe1 {[%clk 0:00:03.9]} 31... Qxe1+ {[%clk
0:00:50.4]} 32. Kg2 {[%clk 0:00:03.7]} 32... Qxf2+ {[%clk 0:00:50.5]} 33. Kh3
{[%clk 0:00:03.7]} 33... Qxh2+ {[%clk 0:00:50.1]} 34. Kg4 {[%clk 0:00:02.9]}
34... Rxb4+ {[%clk 0:00:50.1]} 35. Kg5 {[%clk 0:00:02.7]} 35... h6+ {[%clk
0:00:46.1]} 0-1

[Event "*** Titled Tuesday Blitz"]
[Site "Chess.com"]
[Date "2020.04.28"]
[Round "9"]
[White "DishonorOnYourCow"]
[Black "Blagorod"]
[Result "1/2-1/2"]
[WhiteElo "2288"]
[BlackElo "2141"]
[TimeControl "180+1"]
[EndTime "11:45:46 PDT"]
[Termination "Game drawn by repetition"]

1. d4 {[%clk 0:03:00.9]} 1... d5 {[%clk 0:02:59]} 2. c4 {[%clk 0:03:00.8]} 2...
Nc6 {[%clk 0:02:59.2]} 3. cxd5 {[%clk 0:03:00.4]} 3... Qxd5 {[%clk 0:02:59.4]}
4. Nf3 {[%clk 0:03:00.3]} 4... e5 {[%clk 0:02:56.9]} 5. Nc3 {[%clk 0:02:53]}
5... Bb4 {[%clk 0:02:56.1]} 6. e3 {[%clk 0:02:52.9]} 6... Bg4 {[%clk 0:02:48.8]}
7. Be2 {[%clk 0:02:52]} 7... O-O-O {[%clk 0:02:45.9]} 8. O-O {[%clk 0:02:45.7]}
8... Bxc3 {[%clk 0:02:40.4]} 9. bxc3 {[%clk 0:02:45.3]} 9... e4 {[%clk
0:02:34.8]} 10. Nd2 {[%clk 0:02:42.5]} 10... Bf5 {[%clk 0:02:18.5]} 11. c4
{[%clk 0:02:34.3]} 11... Qd6 {[%clk 0:02:17.4]} 12. Rb1 {[%clk 0:02:31.6]} 12...
h5 {[%clk 0:02:09.3]} 13. Qb3 {[%clk 0:02:29.3]} 13... b6 {[%clk 0:02:07.2]} 14.
c5 {[%clk 0:02:25.6]} 14... Qg6 {[%clk 0:02:06]} 15. Ba6+ {[%clk 0:01:47]} 15...
Kd7 {[%clk 0:01:59.6]} 16. Bb5 {[%clk 0:01:29.7]} 16... Ke7 {[%clk 0:01:50.6]}
17. cxb6 {[%clk 0:01:22.5]} 17... axb6 {[%clk 0:01:43.9]} 18. Ba3+ {[%clk
0:01:21.3]} 18... Kf6 {[%clk 0:01:39.7]} 19. Bxc6 {[%clk 0:01:19.2]} 19... Kg5
{[%clk 0:01:40.3]} 20. Qc2 {[%clk 0:01:04]} 20... Nf6 {[%clk 0:01:38]} 21. f3
{[%clk 0:01:01.5]} 21... Kh6 {[%clk 0:01:22.6]} 22. fxe4 {[%clk 0:00:52.7]}
22... Bh3 {[%clk 0:01:20.3]} 23. Nf3 {[%clk 0:00:52.1]} 23... Ng4 {[%clk
0:01:12.7]} 24. Qd2 {[%clk 0:00:24.4]} 24... Qxc6 {[%clk 0:00:53.9]} 25. gxh3
{[%clk 0:00:23.8]} 25... Qxe4 {[%clk 0:00:47.8]} 26. hxg4 {[%clk 0:00:22.9]}
26... hxg4 {[%clk 0:00:46.7]} 27. Ne5 {[%clk 0:00:20.6]} 27... Qxe5 {[%clk
0:00:36.9]} 28. dxe5 {[%clk 0:00:19.7]} 28... Rxd2 {[%clk 0:00:36.9]} 29. Rxf7
{[%clk 0:00:19.5]} 29... Kg6 {[%clk 0:00:36.5]} 30. Rxc7 {[%clk 0:00:19.3]}
30... Rhxh2 {[%clk 0:00:36]} 31. Rc6+ {[%clk 0:00:19.2]} 31... Kh7 {[%clk
0:00:33.6]} 32. Rcxb6 {[%clk 0:00:19.2]} 32... Rhg2+ {[%clk 0:00:32.9]} 33. Kf1
{[%clk 0:00:19]} 33... Rh2 {[%clk 0:00:31.4]} 34. Kg1 {[%clk 0:00:17.5]} 34...
Rhg2+ {[%clk 0:00:31.6]} 35. Kf1 {[%clk 0:00:17.6]} 35... Rgf2+ {[%clk
0:00:29.3]} 36. Ke1 {[%clk 0:00:17.6]} 36... Rfe2+ {[%clk 0:00:29.7]} 37. Kf1
{[%clk 0:00:18]} 37... Rf2+ {[%clk 0:00:30]} 38. Kg1 {[%clk 0:00:18.3]} 38...
Rg2+ {[%clk 0:00:29.8]} 1/2-1/2

[Event "*** Titled Tuesday Blitz"]
[Site "Chess.com"]
[Date "2020.04.28"]
[Round "9"]
[White "AcsinteMatei"]
[Black "djogrodek1"]
[Result "0-1"]
[WhiteElo "2310"]
[BlackElo "2567"]
[TimeControl "180+1"]
[EndTime "11:45:47 PDT"]
[Termination "djogrodek1 won by resignation"]

1. d4 {[%clk 0:03:00.9]} 1... d5 {[%clk 0:02:58.1]} 2. Bf4 {[%clk 0:03:00.5]}
2... c5 {[%clk 0:02:58.6]} 3. c3 {[%clk 0:02:59.1]} 3... Nc6 {[%clk 0:02:58.4]}
4. e3 {[%clk 0:02:44.6]} 4... Bf5 {[%clk 0:02:56.5]} 5. Nd2 {[%clk 0:02:27.3]}
5... e6 {[%clk 0:02:52.3]} 6. Ngf3 {[%clk 0:02:25]} 6... Qb6 {[%clk 0:02:48.2]}
7. Qc1 {[%clk 0:02:11]} 7... Nf6 {[%clk 0:02:47]} 8. h3 {[%clk 0:02:09.1]} 8...
h6 {[%clk 0:02:46.9]} 9. Be2 {[%clk 0:02:09]} 9... Be7 {[%clk 0:02:47.4]} 10.
Ne5 {[%clk 0:02:06.5]} 10... Rc8 {[%clk 0:02:46.4]} 11. Nxc6 {[%clk 0:02:01.9]}
11... Rxc6 {[%clk 0:02:40.8]} 12. Nf3 {[%clk 0:01:58.4]} 12... Rc8 {[%clk
0:02:39]} 13. O-O {[%clk 0:01:57.8]} 13... O-O {[%clk 0:02:38.5]} 14. Ne5 {[%clk
0:01:57.9]} 14... Rfd8 {[%clk 0:02:36.8]} 15. f3 {[%clk 0:01:51.7]} 15... Nd7
{[%clk 0:02:27.2]} 16. Qd2 {[%clk 0:01:44.5]} 16... Nxe5 {[%clk 0:02:17.4]} 17.
Bxe5 {[%clk 0:01:45.4]} 17... Bd6 {[%clk 0:02:15]} 18. Bxd6 {[%clk 0:01:39.8]}
18... Qxd6 {[%clk 0:02:15.9]} 19. Bd3 {[%clk 0:01:36.3]} 19... Bxd3 {[%clk
0:02:15.9]} 20. Qxd3 {[%clk 0:01:37.2]} 20... e5 {[%clk 0:02:16.8]} 21. dxc5
{[%clk 0:01:32.4]} 21... Qxc5 {[%clk 0:02:15.3]} 22. Kh2 {[%clk 0:01:31.4]}
22... Rc6 {[%clk 0:02:13.2]} 23. Rad1 {[%clk 0:01:25.2]} 23... Rcd6 {[%clk
0:02:08.6]} 24. f4 {[%clk 0:01:23.3]} 24... exf4 {[%clk 0:02:03.5]} 25. Rxf4
{[%clk 0:01:22.7]} 25... Re6 {[%clk 0:02:02.5]} 26. Rf3 {[%clk 0:01:13.2]} 26...
Qb6 {[%clk 0:01:51.5]} 27. Rd2 {[%clk 0:01:09.4]} 27... Rdd6 {[%clk 0:01:33.1]}
28. Rdf2 {[%clk 0:01:07.7]} 28... Rd7 {[%clk 0:01:30.2]} 29. Qd4 {[%clk
0:01:03.3]} 29... Qxd4 {[%clk 0:01:28.3]} 30. exd4 {[%clk 0:01:04.2]} 30... f6
{[%clk 0:01:27.3]} 31. Kg3 {[%clk 0:01:02.9]} 31... Kf7 {[%clk 0:01:25.3]} 32.
Rd3 {[%clk 0:01:02.9]} 32... Re1 {[%clk 0:01:22.3]} 33. b3 {[%clk 0:01:02.6]}
33... Rc1 {[%clk 0:01:19.4]} 34. Re2 {[%clk 0:01:01.3]} 34... Re7 {[%clk
0:01:17.3]} 35. Rxe7+ {[%clk 0:00:51.8]} 35... Kxe7 {[%clk 0:01:18.2]} 36. a4
{[%clk 0:00:51.9]} 36... f5 {[%clk 0:01:09.4]} 37. Kf4 {[%clk 0:00:49.3]} 37...
Kf6 {[%clk 0:01:09.6]} 38. Re3 {[%clk 0:00:45.7]} 38... g5+ {[%clk 0:01:10.5]}
39. Kf3 {[%clk 0:00:45.4]} 39... f4 {[%clk 0:00:53.5]} 40. Rd3 {[%clk
0:00:45.5]} 40... Kf5 {[%clk 0:00:54]} 41. a5 {[%clk 0:00:41.7]} 41... h5 {[%clk
0:00:53.9]} 42. g4+ {[%clk 0:00:40]} 42... fxg3 {[%clk 0:00:50.9]} 43. Kxg3
{[%clk 0:00:28.7]} 43... Ke4 {[%clk 0:00:51.8]} 44. Rd2 {[%clk 0:00:23.9]} 44...
Rxc3+ {[%clk 0:00:51]} 45. Kg2 {[%clk 0:00:24.6]} 45... Rxb3 {[%clk 0:00:50.7]}
0-1

[Event "*** Titled Tuesday Blitz"]
[Site "Chess.com"]
[Date "2020.04.28"]
[Round "9"]
[White "xamax2000"]
[Black "UCantHandleDenker"]
[Result "0-1"]
[WhiteElo "2725"]
[BlackElo "2594"]
[TimeControl "180+1"]
[EndTime "11:45:48 PDT"]
[Termination "UCantHandleDenker won on time"]

1. e4 {[%clk 0:03:00.9]} 1... c5 {[%clk 0:02:59.5]} 2. Nf3 {[%clk 0:03:00.6]}
2... d6 {[%clk 0:02:59.7]} 3. Bb5+ {[%clk 0:02:59.8]} 3... Bd7 {[%clk
0:02:59.2]} 4. Bxd7+ {[%clk 0:02:59.9]} 4... Qxd7 {[%clk 0:02:59.8]} 5. c4
{[%clk 0:03:00.2]} 5... Nc6 {[%clk 0:02:59.2]} 6. d4 {[%clk 0:02:59.7]} 6...
cxd4 {[%clk 0:02:59.2]} 7. Nxd4 {[%clk 0:03:00.6]} 7... g6 {[%clk 0:02:59.4]} 8.
O-O {[%clk 0:03:00.7]} 8... Bg7 {[%clk 0:03:00]} 9. Be3 {[%clk 0:03:00.7]} 9...
Nf6 {[%clk 0:03:00.6]} 10. f3 {[%clk 0:03:00.8]} 10... O-O {[%clk 0:03:01.1]}
11. Nc3 {[%clk 0:03:01.3]} 11... Rfc8 {[%clk 0:03:00.8]} 12. b3 {[%clk
0:02:59.7]} 12... Qd8 {[%clk 0:03:00.9]} 13. Qd3 {[%clk 0:02:54.9]} 13... Rab8
{[%clk 0:02:57.4]} 14. Rac1 {[%clk 0:02:50.3]} 14... a6 {[%clk 0:02:56]} 15.
Rfd1 {[%clk 0:02:38.1]} 15... Qa5 {[%clk 0:02:54]} 16. a4 {[%clk 0:02:31.8]}
16... h5 {[%clk 0:02:18.9]} 17. Kh1 {[%clk 0:02:18.4]} 17... h4 {[%clk
0:02:18.7]} 18. Nde2 {[%clk 0:02:11.3]} 18... h3 {[%clk 0:02:12.7]} 19. Qd2
{[%clk 0:01:48]} 19... hxg2+ {[%clk 0:02:10.1]} 20. Kxg2 {[%clk 0:01:48.9]}
20... Qh5 {[%clk 0:02:06.3]} 21. Ng3 {[%clk 0:01:47.1]} 21... Qh8 {[%clk
0:02:00.5]} 22. Nd5 {[%clk 0:01:38.5]} 22... Nxd5 {[%clk 0:01:55.1]} 23. cxd5
{[%clk 0:01:36.1]} 23... Ne5 {[%clk 0:01:54.8]} 24. Rxc8+ {[%clk 0:01:30.6]}
24... Rxc8 {[%clk 0:01:53.9]} 25. Rc1 {[%clk 0:01:31.5]} 25... Kh7 {[%clk
0:01:49.8]} 26. h3 {[%clk 0:01:21.8]} 26... Qd8 {[%clk 0:01:44.1]} 27. Bb6
{[%clk 0:01:11.4]} 27... Qd7 {[%clk 0:01:40.6]} 28. Rh1 {[%clk 0:00:42]} 28...
Bh6 {[%clk 0:01:37.7]} 29. Be3 {[%clk 0:00:18.8]} 29... Bxe3 {[%clk 0:01:34.4]}
30. Qxe3 {[%clk 0:00:19.7]} 30... Rc2+ {[%clk 0:01:34.2]} 31. Ne2 {[%clk
0:00:20.1]} 31... b5 {[%clk 0:01:09.9]} 32. f4 {[%clk 0:00:20]} 32... bxa4
{[%clk 0:00:52.5]} 33. fxe5 {[%clk 0:00:15.2]} 33... Qb5 {[%clk 0:00:52.9]} 34.
Re1 {[%clk 0:00:12.8]} 34... axb3 {[%clk 0:00:52]} 35. Qf2 {[%clk 0:00:09.6]}
35... Kg7 {[%clk 0:00:49.6]} 36. Kh1 {[%clk 0:00:07.7]} 36... dxe5 {[%clk
0:00:47.9]} 37. Rf1 {[%clk 0:00:03]} 37... f6 {[%clk 0:00:47.2]} 38. Re1 {[%clk
0:00:01.2]} 38... b2 {[%clk 0:00:47]} 0-1